bitfinex/quotes_BTCUSD_20250314
["timestamp","ask_amount","ask_price","bid_price","bid_amount"]
[1741953245702,0.011986,83426.0,83422.0,0.239742]
[1741953245837,0.239736,83425.0,83422.0,0.239742]
[1741953246857,0.251719,83426.0,83422.0,0.240744]
[1741953247197,0.239736,83425.0,83422.0,0.240744]
[1741953247593,0.239736,83425.0,83423.0,0.23974]
[1741953247905,0.239727,83428.0,83425.0,0.239733]
[1741953248038,0.239719,83431.0,83425.0,0.239733]
[1741953248242,0.02556371,83434.0,83429.0,0.011986]
[1741953248462,0.3,83433.0,83429.0,0.011986]
[1741953248666,0.3,83433.0,83432.0,0.239716]
[1741953248950,0.3,83433.0,83431.0,0.251703]
[1741953248951,0.3,83433.0,83431.0,0.239718]
[1741953249185,0.539713,83433.0,83431.0,0.239718]
[1741953249384,0.239713,83433.0,83428.0,0.0806]
[1741953249584,0.23973,83427.0,83424.0,0.239737]
[1741953249909,0.011986,83430.0,83425.0,0.011986]
[1741953250129,0.251704,83431.0,83426.0,0.011986]
[1741953250542,0.251704,83431.0,83428.0,0.239725]
[1741953251083,0.239722,83430.0,83428.0,0.239725]
[1741953251313,0.07686867,83429.0,83428.0,0.239725]
[1741953251507,0.239722,83430.0,83427.0,0.239729]
[1741953251706,0.251704,83431.0,83428.0,0.239726]
[1741953251911,0.239723,83430.0,83427.0,0.239729]
[1741953252631,0.239723,83430.0,83427.0,0.23794908]
[1741953252856,0.239723,83430.0,83428.0,0.239727]
[1741953253045,0.001,83431.0,83429.0,0.239722]
[1741953253278,0.3,83433.0,83431.0,0.239717]
[1741953253479,0.3,83433.0,83431.0,0.237717]
[1741953253614,0.539714,83433.0,83431.0,0.239718]
[1741953253947,0.539714,83433.0,83429.0,0.239724]
[1741953254262,0.24072,83431.0,83429.0,0.239724]
[1741953254557,0.24072,83431.0,83430.0,0.251707]
[1741953254558,0.001,83431.0,83430.0,0.251707]
[1741953255997,0.07676707,83431.0,83429.0,0.239724]
[1741953256198,0.07676707,83431.0,83430.0,0.239721]
[1741953256356,0.07576707,83431.0,83430.0,0.239721]
[1741953257164,0.011985,83432.0,83427.0,0.239728]
[1741953257367,0.25328971,83434.0,83428.0,0.239726]
[1741953257565,0.239716,83432.0,83430.0,0.240721]
[1741953257847,0.239716,83432.0,83430.0,0.001]
[1741953261966,0.01375092,83434.0,83433.0,0.381698]
[1741953262339,0.01375092,83434.0,83433.0,0.384698]
[1741953262941,0.01375092,83434.0,83433.0,0.386698]
[1741953263150,0.0003388,83434.0,83433.0,0.386698]
[1741953263648,0.0003388,83434.0,83433.0,0.39963692]
[1741953263849,0.0003388,83434.0,83433.0,0.51501732]
[1741953265546,0.0003388,83434.0,83433.0,0.51301732]
[1741953266138,0.0003388,83434.0,83433.0,0.51601732]
[1741953266337,0.0003388,83434.0,83433.0,0.51001732]
[1741953266745,0.0003388,83434.0,83433.0,0.51401732]
[1741953267537,0.0003388,83434.0,83433.0,0.51801732]
[1741953268087,0.0003388,83434.0,83433.0,0.65269732]
[1741953268288,8e-07,83434.0,83433.0,0.65269732]
[1741953270039,8e-07,83434.0,83433.0,0.51801732]
[1741953270185,0.0001694,83477.0,83473.0,0.011979]
[1741953270404,0.0001694,83477.0,83474.0,0.251574]
[1741953270405,0.01279272,83475.0,83474.0,0.251574]
[1741953270605,0.01279272,83475.0,83474.0,0.23715663]
[1741953270606,2e-07,83475.0,83474.0,0.23715663]
[1741953271678,0.01513616,83475.0,83472.0,0.2396]
[1741953271912,0.01513616,83475.0,83473.0,0.239598]
[1741953272189,0.239604,83472.0,83468.0,0.239612]
[1741953272351,0.251584,83472.0,83468.0,0.239612]
[1741953272752,0.01198,83470.0,83463.0,0.369826]
[1741953272963,0.251591,83469.0,83463.0,0.0497]
[1741953273568,0.239619,83466.0,83463.0,0.289327]
[1741953273770,0.239622,83465.0,83463.0,0.289327]
[1741953273996,0.239629,83463.0,83457.0,0.316738]
[1741953274216,0.23963,83462.0,83455.0,0.288947]
[1741953274367,0.239639,83459.0,83456.0,0.239646]
[1741953274569,0.011981,83460.0,83456.0,0.239646]
[1741953274776,0.011981,83461.0,83456.0,0.239646]
[1741953275218,0.01198,83471.0,83462.0,0.011981]
[1741953275459,0.01198,83471.0,83465.0,0.239618]
[1741953275460,0.239615,83468.0,83465.0,0.239618]
[1741953275697,0.239616,83467.0,83464.0,0.239624]
[1741953275870,0.239616,83467.0,83465.0,0.239621]
[1741953276201,0.239618,83466.0,83462.0,0.011981]
[1741953276377,0.251607,83464.0,83459.0,0.011981]
[1741953276579,0.239626,83464.0,83461.0,0.23963]
[1741953276797,0.239626,83464.0,83460.0,0.251616]
[1741953277138,0.251602,83465.0,83462.0,0.239628]
[1741953277349,0.251598,83466.0,83463.0,0.2397953]
[1741953277565,0.239624,83465.0,83463.0,0.0001693]
[1741953278145,0.239624,83464.0,83463.0,0.0001693]
[1741953278322,0.251605,83464.0,83463.0,0.0001693]
[1741953283600,0.551605,83464.0,83463.0,0.0001693]
[1741953283804,0.627205,83464.0,83463.0,0.0001693]
[1741953284059,0.239658,83452.0,83449.0,0.2218353]
[1741953284711,0.239658,83452.0,83450.0,0.239664]
[1741953284944,0.239661,83451.0,83448.0,0.251653]
[1741953285330,0.239658,83452.0,83449.0,0.239666]
[1741953285474,0.239663,83451.0,83447.0,0.0493]
[1741953285707,0.23967,83448.0,83447.0,0.0493]
[1741953285904,0.251653,83448.0,83447.0,0.0493]
[1741953287076,0.251665,83444.0,83439.0,0.0467]
[1741953287272,0.251665,83444.0,83439.0,0.058684]
[1741953287452,0.052729,83443.0,83440.0,0.00936918]
[1741953287654,0.052729,83443.0,83441.0,0.239687]
[1741953288239,0.052729,83443.0,83440.0,0.00936918]
[1741953288443,0.251674,83441.0,83440.0,0.00936918]
[1741953288679,0.30532941,83443.0,83440.0,0.24906118]
[1741953288879,0.25260041,83443.0,83441.0,0.004]
[1741953289375,0.01291641,83443.0,83441.0,0.24369]
[1741953289572,0.239673,83448.0,83446.0,0.239675]
[1741953289774,0.239673,83448.0,83444.0,0.011984]
[1741953289938,0.239669,83449.0,83444.0,0.010984]
[1741953290142,0.239678,83446.0,83442.0,0.011984]
[1741953290429,0.239683,83444.0,83441.0,0.239689]
[1741953290562,0.239685,83443.0,83441.0,0.0001693]
[1741953290764,0.26453007,83446.0,83442.0,0.239687]
[1741953291108,0.239681,83445.0,83442.0,0.239687]
[1741953292816,0.0126235,83446.0,83444.0,0.251665]
[1741953292987,0.251652,83449.0,83446.0,0.239673]
[1741953293191,0.011983,83448.0,83444.0,0.239679]
[1741953293373,0.239675,83447.0,83444.0,0.251665]
[1741953293577,0.239677,83446.0,83443.0,0.251663]
[1741953294011,0.239677,83446.0,83444.0,0.23968]
[1741953294207,0.239675,83447.0,83444.0,0.23968]
[1741953294387,0.3286368,83446.0,83444.0,0.23968]
[1741953295155,0.3286368,83446.0,83443.0,0.251667]
[1741953295363,0.239679,83445.0,83443.0,0.239683]
[1741953295568,0.23968,83445.0,83441.0,0.0001693]
[1741953295700,0.239684,83443.0,83441.0,0.0001693]
[1741953296099,0.239687,83442.0,83441.0,0.0001693]
[1741953296324,0.239684,83443.0,83441.0,0.0001693]
[1741953297678,0.239684,83443.0,83441.0,0.2398583]
[1741953298706,0.239684,83443.0,83441.0,0.0001693]
[1741953299041,0.239682,83444.0,83441.0,0.2398583]
[1741953300259,0.26447591,83446.0,83443.0,0.239684]
[1741953300459,0.01281691,83446.0,83443.0,0.239684]
[1741953300662,0.146623,83451.0,83447.0,0.239673]
[1741953300663,0.13464,83451.0,83447.0,0.239673]
[1741953300887,0.03951749,83450.0,83444.0,0.239681]
[1741953301093,0.23967,83448.0,83445.0,0.239676]
[1741953301497,0.239673,83447.0,83444.0,0.239681]
[1741953302532,0.23967,83448.0,83444.0,0.251665]
[1741953302830,0.239674,83447.0,83445.0,0.239678]
[1741953303679,0.23967,83448.0,83445.0,0.239678]
[1741953305327,0.239673,83447.0,83445.0,0.239678]
[1741953305530,0.14735345,83451.0,83446.0,0.011983]
[1741953305793,0.38701645,83451.0,83447.0,0.011983]
[1741953305975,0.38701945,83451.0,83449.0,0.239666]
[1741953306174,0.38701945,83451.0,83448.0,0.23967]
[1741953306715,0.01271345,83451.0,83450.0,0.251647]
[1741953306888,0.01271345,83451.0,83450.0,0.331047]
[1741953307100,0.0003386,83452.0,83450.0,0.319063]
[1741953307499,0.01297488,83452.0,83450.0,0.319063]
[1741953307802,0.2399966,83452.0,83450.0,0.319063]
[1741953308524,0.2399966,83452.0,83451.0,0.251644]
[1741953308525,0.0003386,83452.0,83451.0,0.251644]
[1741953308751,0.03037246,83452.0,83451.0,0.251644]
[1741953309288,0.0431841,83452.0,83451.0,0.239661]
[1741953309479,0.01315024,83452.0,83451.0,0.251644]
[1741953309673,0.0003386,83452.0,83451.0,0.251644]
[1741953309872,0.13464,83461.0,83460.0,0.011981]
[1741953310127,0.13464,83461.0,83460.0,0.251614]
[1741953310349,0.13464,83461.0,83458.0,0.23964]
[1741953310637,0.13464,83461.0,83460.0,0.239635]
[1741953311561,0.13464,83466.0,83463.0,0.239624]
[1741953311797,0.13464,83466.0,83461.0,0.011981]
[1741953313692,0.239624,83464.0,83459.0,0.251619]
[1741953313894,0.539627,83463.0,83458.0,0.239641]
[1741953314107,0.3,83463.0,83459.0,0.239637]
[1741953314302,0.539627,83463.0,83459.0,0.239637]
[1741953314503,0.3,83463.0,83459.0,0.239637]
[1741953314719,0.0003386,83461.0,83459.0,0.239637]
[1741953315625,0.0003386,83461.0,83460.0,0.239635]
[1741953315845,0.0003386,83461.0,83459.0,0.239637]
[1741953316246,0.0003386,83461.0,83458.0,0.239636]
[1741953316664,0.0003386,83461.0,83459.0,0.239637]
[1741953317225,0.0003386,83461.0,83458.0,0.239636]
[1741953317565,0.0003386,83461.0,83459.0,0.239637]
[1741953318084,0.0003386,83461.0,83460.0,0.239635]
[1741953318287,0.0003386,83461.0,83460.0,0.251616]
[1741953319178,0.0003386,83461.0,83459.0,0.239637]
[1741953319516,0.0003386,83461.0,83460.0,0.239635]
[1741953320739,0.239622,83465.0,83461.0,0.239632]
[1741953323909,0.32672333,83471.0,83470.0,0.251587]
[1741953324960,0.62672333,83471.0,83470.0,0.251587]
[1741953325076,0.62672333,83471.0,83470.0,0.239607]
[1741953325481,0.62672333,83471.0,83467.0,0.300493]
[1741953325781,0.62672333,83471.0,83468.0,0.23961]
[1741953326000,0.86632833,83471.0,83468.0,0.239612]
[1741953326460,0.62672333,83471.0,83468.0,0.239612]
[1741953326671,0.86632733,83471.0,83468.0,0.239612]
[1741953326877,0.239612,83469.0,83467.0,0.0489]
[1741953327504,0.239607,83470.0,83467.0,0.288515]
[1741953328410,0.239612,83468.0,83467.0,0.0489]
[1741953328581,0.239612,83469.0,83467.0,0.0489]
[1741953328966,0.251587,83470.0,83467.0,0.288515]
[1741953329319,0.01198,83470.0,83440.0,0.00936918]
[1741953329520,0.251614,83461.0,83456.0,0.011982]
[1741953329735,0.239635,83460.0,83456.0,0.011982]
[1741953329933,0.251616,83460.0,83454.0,0.23965]
[1741953330140,0.251616,83460.0,83455.0,0.239647]
[1741953330872,0.251616,83460.0,83454.0,0.251632]
[1741953331007,0.26285188,83460.0,83454.0,0.251632]
[1741953331844,0.26285188,83460.0,83455.0,0.239648]
[1741953336873,0.02247726,83460.0,83459.0,0.2527883]
[1741953337207,0.03372363,83460.0,83459.0,0.2527883]
[1741953338047,0.03372363,83460.0,83459.0,0.0011693]
[1741953338663,0.02247726,83460.0,83459.0,0.0011693]
[1741953338961,0.02247726,83460.0,83459.0,0.2408073]
[1741953339567,0.0003386,83461.0,83459.0,0.2408073]
[1741953339801,0.2399726,83461.0,83459.0,0.0011693]
[1741953340371,0.2399726,83461.0,83459.0,0.0001693]
[1741953340580,0.2399726,83461.0,83459.0,0.2398073]
[1741953341175,0.2399726,83461.0,83459.0,0.0001693]
[1741953341375,0.2399716,83461.0,83459.0,0.2398063]
[1741953341580,0.2399716,83461.0,83459.0,0.0001693]
[1741953342260,0.239635,83460.0,83459.0,0.0001693]
[1741953342465,0.27338445,83460.0,83459.0,0.0001693]
[1741953343471,0.27338445,83460.0,83459.0,0.0011693]
[1741953344556,0.28536545,83460.0,83459.0,0.0011693]
[1741953345533,0.01124981,83460.0,83459.0,0.2408073]
[1741953345915,0.01124981,83460.0,83459.0,0.2527883]
[1741953346477,0.0003386,83461.0,83460.0,0.239635]
[1741953346679,0.0003386,83461.0,83460.0,0.251616]
[1741953347641,0.0003386,83461.0,83460.0,0.239635]
[1741953352559,0.0003386,83461.0,83460.0,0.251616]
[1741953353321,0.0003386,83461.0,83460.0,0.377116]
[1741953353523,0.0003386,83461.0,83460.0,0.40623367]
[1741953353732,0.0003386,83461.0,83460.0,0.377116]
[1741953358912,0.3003386,83461.0,83460.0,0.0473]
[1741953360318,0.0003386,83461.0,83460.0,0.0473]
[1741953361120,0.2399706,83461.0,83460.0,0.0473]
[1741953361329,0.0003386,83461.0,83460.0,0.0473]
[1741953361728,0.2399706,83461.0,83460.0,0.0473]
[1741953362126,0.54280527,83462.0,83460.0,0.0473]
[1741953362323,0.53082427,83462.0,83460.0,0.0473]
[1741953362527,0.239628,83463.0,83460.0,0.286934]
[1741953362728,0.239628,83463.0,83460.0,0.0473]
[1741953363383,0.239627,83464.0,83460.0,0.286935]
[1741953363531,0.239615,83467.0,83460.0,0.286935]
[1741953363988,0.0003386,83461.0,83460.0,0.286935]
[1741953364564,0.0003386,83461.0,83460.0,0.298916]
[1741953369257,0.0003386,83461.0,83460.0,0.48473648]
[1741953370043,6e-07,83461.0,83460.0,0.48473648]
[1741953370831,6e-07,83461.0,83460.0,0.49760409]
[1741953371325,0.0003386,83471.0,83470.0,0.251587]
[1741953371496,0.0003386,83471.0,83470.0,0.39262785]
[1741953371716,0.0003386,83471.0,83470.0,0.51258874]
[1741953372157,6e-07,83471.0,83470.0,0.51258874]
[1741953372796,6e-07,83471.0,83470.0,0.51458874]
[1741953372924,6e-07,83471.0,83470.0,0.41458874]
[1741953373135,6e-07,83471.0,83470.0,0.42656874]
[1741953373826,6e-07,83471.0,83470.0,0.42456874]
[1741953374248,6e-07,83471.0,83470.0,0.42756874]
[1741953374547,6e-07,83471.0,83470.0,0.42956874]
[1741953375018,6e-07,83471.0,83470.0,0.42756874]
[1741953375183,6e-07,83471.0,83470.0,0.42956874]
[1741953378483,2e-07,83474.0,83473.0,0.251577]
[1741953378633,2e-07,83474.0,83473.0,0.48982144]
[1741953379574,2e-07,83475.0,83473.0,0.48982144]
[1741953379575,8e-07,83477.0,83476.0,0.251568]
[1741953379771,8e-07,83477.0,83476.0,0.39110885]
[1741953379975,8e-07,83477.0,83476.0,0.48138848]
[1741953381294,8e-07,83477.0,83476.0,0.48338848]
[1741953381988,8e-07,83477.0,83476.0,0.48438848]
[1741953384402,8e-07,83477.0,83476.0,0.61894848]
[1741953387023,8e-07,83477.0,83476.0,0.48438848]
[1741953387210,8e-07,83477.0,83476.0,0.61894848]
[1741953394355,8e-07,83477.0,83476.0,0.48438848]
[1741953394567,8e-07,83477.0,83476.0,0.61890848]
[1741953399707,8e-07,83477.0,83476.0,0.61924708]
[1741953413634,8e-07,83477.0,83476.0,0.48472708]
[1741953413846,8e-07,83477.0,83476.0,0.61924708]
[1741953416498,8e-07,83477.0,83476.0,0.48472708]
[1741953416669,8e-07,83477.0,83476.0,0.61924708]
[1741953417261,8e-07,83477.0,83476.0,0.53964708]
[1741953419901,8e-07,83477.0,83476.0,0.52464708]
[1741953421130,8e-07,83477.0,83476.0,0.61402608]
[1741953451499,8e-07,83477.0,83476.0,1.16952608]
[1741953453581,8e-07,83477.0,83476.0,1.16948608]
[1741953457124,8e-07,83477.0,83476.0,1.09208608]
[1741953458566,2.29828776,83499.0,83498.0,0.251502]
[1741953458700,2.29828776,83499.0,83498.0,0.807002]
[1741953461649,0.02333333,83560.0,83551.0,0.011968]
[1741953461854,0.011968,83556.0,83554.0,0.1111]
[1741953462054,0.011967,83559.0,83554.0,0.5555]
[1741953462055,0.01276679,83555.0,83554.0,0.5555]
[1741953462300,0.32473479,83555.0,83554.0,0.5555]
[1741953462914,0.49797479,83555.0,83554.0,0.5055]
[1741953463855,0.49797479,83555.0,83554.0,0.49512785]
[1741953465196,0.31276679,83555.0,83554.0,0.49512785]
[1741953465382,0.46077479,83555.0,83554.0,0.49512785]
[1741953465544,0.56409779,83555.0,83554.0,0.49512785]
[1741953465756,0.70017779,83555.0,83554.0,0.49512785]
[1741953466694,0.70317779,83555.0,83554.0,0.49512785]
[1741953467823,0.7219522,83555.0,83554.0,0.49512785]
[1741953468175,0.7219522,83555.0,83554.0,0.47635341]
[1741953468370,0.70317779,83555.0,83554.0,0.47635341]
[1741953468573,0.66317779,83555.0,83554.0,0.47635341]
[1741953469368,0.29454098,83555.0,83554.0,0.47669181]
[1741953469574,0.43042098,83555.0,83554.0,0.47669181]
[1741953469875,0.43059018,83555.0,83554.0,0.47669181]
[1741953470073,0.44325698,83555.0,83554.0,0.47669181]
[1741953470461,0.31934498,83555.0,83554.0,0.47669181]
[1741953471043,0.31934498,83555.0,83554.0,0.45469181]
[1741953473150,0.30057079,83555.0,83554.0,0.45469181]
[1741953476635,0.53993379,83555.0,83554.0,0.45469181]
[1741953479686,0.67541379,83555.0,83554.0,0.45469181]
[1741953483041,0.69418687,83555.0,83554.0,0.45469181]
[1741953484985,0.55870687,83555.0,83554.0,0.45469181]
[1741953485187,0.69394687,83555.0,83554.0,0.45469181]
[1741953487925,0.55870687,83555.0,83554.0,0.45469181]
[1741953488130,0.69382687,83555.0,83554.0,0.45469181]
[1741953492968,0.69366687,83555.0,83554.0,0.45469181]
[1741953494676,0.251415,83527.0,83525.0,0.0824]
[1741953494877,0.23944,83528.0,83525.0,0.0824]
[1741953495017,0.239438,83529.0,83526.0,0.287245]
[1741953495216,0.239438,83529.0,83526.0,0.0478]
[1741953495626,0.239432,83532.0,83527.0,0.239441]
[1741953495836,0.3,83531.0,83528.0,0.23944]
[1741953496455,0.3,83531.0,83527.0,0.239441]
[1741953496652,0.3,83531.0,83529.0,0.239437]
[1741953496875,0.3,83532.0,83528.0,0.239439]
[1741953497373,0.53943,83532.0,83528.0,0.239439]
[1741953497779,0.3,83532.0,83530.0,0.239433]
[1741953497957,0.5582058,83532.0,83528.0,0.239439]
[1741953498151,0.3187768,83532.0,83529.0,0.239435]
[1741953499521,0.5582068,83532.0,83529.0,0.239435]
[1741953499802,0.239432,83531.0,83529.0,0.001]
[1741953499938,0.239432,83531.0,83529.0,0.002]
[1741953500482,0.5582068,83532.0,83529.0,0.241437]
[1741953500871,0.5582068,83532.0,83529.0,0.240437]
[1741953501749,0.239432,83531.0,83529.0,0.002]
[1741953502173,0.239432,83531.0,83529.0,0.001]
[1741953502400,0.0187768,83532.0,83529.0,0.241435]
[1741953502728,0.2582078,83532.0,83529.0,0.240435]
[1741953503079,0.0187768,83532.0,83531.0,0.239432]
[1741953503284,0.2582058,83532.0,83529.0,0.013971]
[1741953503910,0.239432,83531.0,83529.0,0.241437]
[1741953504230,0.239432,83531.0,83529.0,0.240437]
[1741953504408,0.239432,83531.0,83529.0,0.239437]
[1741953504773,0.2582058,83532.0,83530.0,0.239434]
[1741953505599,0.0187768,83532.0,83531.0,0.251403]
[1741953506537,0.0187768,83532.0,83531.0,0.252403]
[1741953507588,0.0187768,83532.0,83531.0,0.331803]
[1741953508114,0.3,83541.0,83540.0,0.251376]
[1741953508317,0.1346,83543.0,83541.0,0.2394]
[1741953508525,0.13468,83549.0,83547.0,0.011969]
[1741953508681,0.13468,83549.0,83546.0,0.049]
[1741953508682,0.3,83548.0,83546.0,0.049]
[1741953508893,0.539386,83547.0,83546.0,0.049]
[1741953509268,0.539386,83547.0,83546.0,0.047]
[1741953510292,0.551355,83547.0,83546.0,0.047]
[1741953510688,0.57012968,83547.0,83546.0,0.045]
[1741953511528,0.57312968,83547.0,83546.0,0.045]
[1741953511920,0.57512968,83547.0,83546.0,0.045]
[1741953513993,0.33574368,83547.0,83546.0,0.045]
[1741953514192,0.57512968,83547.0,83546.0,0.045]
[1741953514512,0.32377468,83547.0,83546.0,0.045]
[1741953514882,0.57512968,83547.0,83546.0,0.045]
[1741953515082,0.57012968,83547.0,83546.0,0.0459]
[1741953515417,0.57512968,83547.0,83546.0,0.0459]
[1741953515826,0.57212968,83547.0,83546.0,0.0459]
[1741953516033,0.57012968,83547.0,83546.0,0.0459]
[1741953516572,0.57012968,83547.0,83546.0,0.0462384]
[1741953516765,0.57029888,83547.0,83546.0,0.04619594]
[1741953517316,0.57229888,83547.0,83546.0,0.04619594]
[1741953517516,0.57429888,83547.0,83546.0,0.04619594]
[1741953520499,0.57229888,83547.0,83546.0,0.04619594]
[1741953521036,0.57329888,83547.0,83546.0,0.04619594]
[1741953521358,0.57129888,83547.0,83546.0,0.04619594]
[1741953521849,0.57311781,83547.0,83546.0,0.04619594]
[1741953523418,0.23941,83539.0,83536.0,0.34837938]
[1741953523624,0.239412,83538.0,83536.0,0.10896438]
[1741953523825,0.23941,83539.0,83536.0,0.34838138]
[1741953524045,0.23941,83539.0,83537.0,0.239414]
[1741953524363,0.239414,83538.0,83536.0,0.10896438]
[1741953524685,0.239414,83537.0,83536.0,0.10996438]
[1741953524894,0.251384,83537.0,83536.0,0.10996438]
[1741953525093,0.3,83532.0,83530.0,0.079]
[1741953525268,0.3,83532.0,83531.0,0.239432]
[1741953526049,0.3,83534.0,83533.0,0.239426]
[1741953526260,0.3,83534.0,83533.0,0.251397]
[1741953526468,0.3,83534.0,83533.0,0.239426]
[1741953527908,0.23942,83535.0,83532.0,0.288728]
[1741953528071,0.3,83540.0,83535.0,0.011971]
[1741953528273,0.01877646,83534.0,83533.0,0.239426]
[1741953528894,0.01877646,83534.0,83533.0,0.251397]
[1741953529264,0.01877646,83534.0,83533.0,0.2517354]
[1741953529783,0.01877646,83534.0,83533.0,0.0023384]
[1741953530301,0.01877646,83534.0,83533.0,0.2417644]
[1741953530873,0.01877646,83534.0,83533.0,0.2437644]
[1741953532118,0.01877646,83534.0,83533.0,0.2557354]
[1741953540231,0.01877646,83534.0,83533.0,0.0043384]
[1741953540405,0.01877646,83534.0,83533.0,0.2437644]
[1741953540615,0.57017046,83534.0,83533.0,0.0043384]
[1741953541442,0.551394,83534.0,83533.0,0.0043384]
[1741953541636,0.551394,83534.0,83533.0,0.0023384]
[1741953542442,0.551394,83534.0,83533.0,0.0003384]
[1741953543223,0.239437,83530.0,83527.0,0.2231198]
[1741953544245,0.002,83534.0,83533.0,0.239426]
[1741953544412,0.0001693,83536.0,83532.0,0.0804]
[1741953544413,0.011971,83535.0,83532.0,0.0804]
[1741953544613,0.539426,83533.0,83532.0,0.0794]
[1741953545345,0.551397,83533.0,83532.0,0.0794]
[1741953545567,0.011972,83528.0,83522.0,0.239455]
[1741953545768,0.239449,83526.0,83520.0,0.011973]
[1741953545977,0.23945,83525.0,83522.0,0.239455]
[1741953546180,0.239449,83526.0,83523.0,0.289154]
[1741953546753,0.25822661,83526.0,83523.0,0.289154]
[1741953547082,0.25822661,83526.0,83524.0,0.239451]
[1741953547378,0.25822661,83526.0,83525.0,0.239449]
[1741953547379,0.01877761,83526.0,83525.0,0.239449]
[1741953547853,0.01877761,83526.0,83523.0,0.002]
[1741953547854,0.551424,83524.0,83523.0,0.002]
[1741953548058,0.011975,83507.0,83506.0,0.1243]
[1741953548258,0.011975,83507.0,83499.0,0.0751]
[1741953548259,0.239521,83500.0,83499.0,0.0751]
[1741953548406,0.011975,83503.0,83499.0,0.0751]
[1741953548608,0.239515,83502.0,83499.0,0.0751]
[1741953548810,0.239515,83503.0,83500.0,0.239519]
[1741953549639,0.23952,83500.0,83499.0,0.0751]
[1741953549882,0.251496,83500.0,83499.0,0.0751]
[1741953550168,0.26711687,83500.0,83499.0,0.0751]
[1741953550368,0.01562087,83500.0,83499.0,0.314623]
[1741953550707,0.239517,83502.0,83499.0,0.317623]
[1741953550912,0.01878236,83500.0,83499.0,0.0811]
[1741953551109,0.03468605,83500.0,83499.0,0.0811]
[1741953551315,0.03468605,83500.0,83499.0,0.320623]
[1741953551798,0.03468605,83500.0,83499.0,0.317623]
[1741953551931,0.03468605,83500.0,83499.0,0.0781]
[1741953552531,0.28618205,83500.0,83499.0,0.0781]
[1741953552965,0.28618205,83500.0,83499.0,0.0751]
[1741953553139,0.28618205,83500.0,83499.0,0.0781]
[1741953553344,0.27420605,83500.0,83499.0,0.0801]
[1741953553552,0.27420605,83500.0,83499.0,0.0751]
[1741953553760,0.27420605,83500.0,83499.0,0.0771]
[1741953554099,0.27420605,83500.0,83499.0,0.0791]
[1741953554692,0.28618205,83500.0,83499.0,0.0791]
[1741953557353,0.28618205,83500.0,83499.0,0.004]
[1741953557554,0.58618205,83500.0,83499.0,0.004]
[1741953559420,0.551499,83499.0,83498.0,0.00846006]
[1741953560630,0.5513791,83499.0,83498.0,0.00846006]
[1741953560840,0.03468605,83500.0,83499.0,0.239523]
[1741953562862,0.03468605,83500.0,83498.0,0.24998606]
[1741953563093,0.03468605,83500.0,83498.0,0.24798606]
[1741953563298,0.27420705,83500.0,83498.0,0.24798606]
[1741953563436,0.27420705,83500.0,83499.0,0.001]
[1741953563640,0.03468605,83500.0,83499.0,0.240523]
[1741953563840,0.03468605,83500.0,83498.0,0.00846006]
[1741953564040,0.251499,83499.0,83498.0,0.00846006]
[1741953564266,0.551499,83499.0,83498.0,0.00946006]
[1741953564897,0.551499,83499.0,83498.0,0.00846006]
[1741953565127,0.551499,83499.0,83498.0,0.00879866]
[1741953566321,0.551499,83499.0,83498.0,0.00979866]
[1741953566711,0.551499,83499.0,83498.0,0.01079866]
[1741953572132,0.3,83499.0,83498.0,0.01079866]
[1741953573354,0.539523,83499.0,83498.0,0.01079866]
[1741953574260,0.551499,83499.0,83498.0,0.01079866]
[1741953574467,0.539523,83499.0,83498.0,0.01079866]
[1741953576088,0.3,83499.0,83498.0,0.25032466]
[1741953576292,0.3,83499.0,83498.0,0.26230066]
[1741953577942,0.539523,83499.0,83498.0,0.01079866]
[1741953578371,0.5396924,83499.0,83498.0,0.01079866]
[1741953579255,0.3001694,83499.0,83498.0,0.01079866]
[1741953579830,0.3001694,83499.0,83498.0,0.25032466]
[1741953581277,0.3001694,83499.0,83498.0,0.01079866]
[1741953582488,0.5396924,83499.0,83498.0,0.01079866]
[1741953586128,0.5516684,83499.0,83498.0,0.01079866]
[1741953586631,0.24598455,83499.0,83498.0,0.01079866]
[1741953587307,0.28618505,83500.0,83498.0,0.01079866]
[1741953587510,0.239523,83499.0,83498.0,0.01079866]
[1741953588336,0.239523,83499.0,83498.0,0.00979866]
[1741953588694,0.251499,83499.0,83498.0,0.00979866]
[1741953589514,0.251499,83499.0,83498.0,0.01079866]
[1741953589909,0.251499,83499.0,83498.0,0.00979866]
[1741953590103,0.2516684,83499.0,83498.0,0.00979866]
[1741953590309,0.3861484,83499.0,83498.0,0.01079866]
[1741953590937,0.3861484,83499.0,83498.0,0.00979866]
[1741953591353,0.3871484,83499.0,83498.0,0.00979866]
[1741953591553,0.3871484,83499.0,83498.0,0.00879866]
[1741953591764,0.239544,83492.0,83489.0,0.239552]
[1741953593381,0.239537,83495.0,83490.0,0.011977]
[1741953593827,0.239538,83494.0,83490.0,0.011977]
[1741953594033,0.239538,83494.0,83489.0,0.001]
[1741953594034,0.251526,83490.0,83489.0,0.001]
[1741953594245,0.551526,83490.0,83489.0,0.001]
[1741953594799,0.551565,83477.0,83468.0,0.0812]
[1741953595222,0.551565,83477.0,83468.0,0.320811]
[1741953595656,0.551565,83477.0,83468.0,0.0812]
[1741953596653,0.551565,83477.0,83468.0,0.320811]
[1741953597009,0.551565,83477.0,83468.0,0.0812]
[1741953597554,0.57035509,83477.0,83468.0,0.0812]
[1741953597962,0.611915,83477.0,83468.0,0.0812]
[1741953598824,0.239609,83469.0,83468.0,0.06620533]
[1741953598979,0.239609,83469.0,83465.0,0.0453]
[1741953598980,0.251598,83466.0,83465.0,0.0453]
[1741953599370,0.239616,83467.0,83465.0,0.0453]
[1741953599681,0.01879105,83466.0,83465.0,0.0453]
[1741953600083,0.01879105,83466.0,83465.0,0.284921]
[1741953600535,0.01879105,83466.0,83465.0,0.296902]
[1741953600935,0.01879105,83466.0,83465.0,0.298902]
[1741953601280,0.01879105,83466.0,83465.0,0.0473]
[1741953601400,0.03378308,83466.0,83465.0,0.0473]
[1741953601998,0.01499203,83466.0,83465.0,0.1263]